fUSD/lending_fUSD_20240915
["ID","MTS","AMOUNT","RATE_DAILY","PERIOD"]
[338192029,1726379497403,650.46,0.00012414,2]
[338192030,1726379557737,1050.0,0.00011,2]
[338192031,1726379577132,250.0,0.00012344,2]
[338192032,1726379587301,415.64,0.00012298,2]
[338192033,1726379606379,286.37844699,0.00011164,2]
[338192034,1726379607070,334.91901394,0.00011164,2]
[338192035,1726379729598,803.2,0.00012271,2]
[338192036,1726379789344,258.77,0.00010349,2]
[338192037,1726379789402,258.77,0.00012613,2]
[338192038,1726380032492,23900.0,0.00012207,2]
[338192039,1726380076221,1818.02,0.00012248,2]
[338192040,1726380114492,274.93,0.00012235,2]
[338192041,1726380114612,2605.77,0.00012235,2]
[338192042,1726380114903,7498.92,0.00012235,2]
[338192043,1726380172080,161.3,0.00012243,2]
[338192044,1726380177860,164.52,0.00012243,2]
[338192045,1726380227306,250.0,0.00012224,2]
[338192046,1726380241890,166.11,0.00012204,2]
[338192047,1726380287541,250.01,0.00010264,2]
[338192048,1726380287776,250.01,0.00012527,2]
[338192049,1726380327539,155.85555883,0.00011934,2]
[338192050,1726380329153,171.98,0.00012193,2]
[338192051,1726380359163,250.0,0.00012232,2]
[338192053,1726380388359,250.0,0.00012204,2]
[338192054,1726380393806,213.2,0.00012204,2]
[338192055,1726380410726,500.0,0.00012204,2]
[338192056,1726380465767,150.69492706,0.00012143,2]
[338192057,1726380514865,1000.0,0.00012168,2]
[338192058,1726380515683,170.62,0.00010959,2]
[338192061,1726380571313,10734.02,0.00012177,2]
[338192062,1726380598008,1541.13,0.00012185,2]
[338192063,1726380632340,-300.0,0.00012892,2]
[338192064,1726380632349,-194.94377949,0.00012893,2]
[338192065,1726380632361,-273.55312051,0.00012893,2]
[338192066,1726380632371,-460.08070645,0.00012893,2]
[338192067,1726380632380,-296.37866448,0.00012894,2]
[338192068,1726380632389,-159.89920304,0.00012896,2]
[338192069,1726380632400,-150.72,0.00012983,2]
[338192070,1726380632409,-150.0,0.00012991,2]
[338192071,1726380632418,-212.97933797,0.00012992,2]
[338192072,1726380632430,-357.39066203,0.00012992,2]
[338192073,1726380632440,-258.37985797,0.00012992,2]
[338192074,1726380632452,-496.77,0.00012992,2]
[338192075,1726380632464,-2767.71014203,0.00012992,2]
[338192076,1726380632474,-2381.3654412,0.00012992,2]
[338192077,1726380632485,-300.0,0.00012992,2]
[338192078,1726380632496,-496.03836741,0.00012992,2]
[338192079,1726380632536,-2378.67619139,0.00012992,2]
[338192080,1726380632545,-457.6523856,0.00012992,2]
[338192081,1726380632561,-420.6976144,0.00012992,2]
[338192082,1726380632570,-2098.41118137,0.00012992,2]
[338192083,1726380632581,-2114.75881863,0.00012992,2]
[338192084,1726380632591,-1379.91,0.00012992,2]
[338192085,1726380632600,-1931.58,0.00012992,2]
[338192086,1726380632609,-597.57,0.00012992,2]
[338192087,1726380632619,-500.0,0.00012992,2]
[338192088,1726380632629,-2503.7,0.00012992,2]
[338192089,1726380632638,-1013.44908778,0.00012992,2]
[338192090,1726380632650,-497.92091222,0.00012992,2]
[338192091,1726380632660,-1124.67,0.00012992,2]
[338192092,1726380632669,-1463.06,0.00012992,2]
[338192093,1726380632678,-500.0,0.00012992,2]
[338192094,1726380632688,-500.0,0.00012992,2]
[338192095,1726380632697,-757.2859779,0.00012992,2]
[338192096,1726380632708,-1267.1340221,0.00012992,2]
[338192097,1726380632718,-413.00599411,0.00012992,2]
[338192098,1726380632738,-287.37338502,0.00012992,2]
[338192099,1726380632750,-181.70062087,0.00012992,2]
[338192100,1726380632759,-3166.53,0.00012992,2]
[338192101,1726380632768,-1063.69186034,0.00012992,2]
[338192102,1726380632780,-777.495996,0.00012992,2]
[338192103,1726380632791,-413.47322908,0.00012992,2]
[338192104,1726380632803,-411.54627094,0.00012992,2]
[338192107,1726380637863,-610.54264364,0.00012992,2]
[338192108,1726380637874,-638.28463129,0.00012992,2]
[338192121,1726380640126,-581.0751696,0.00012992,2]
[338192122,1726380640207,-418.01019911,0.00012992,2]
[338192123,1726380640218,-63.65465344,0.00012992,2]
[338192140,1726380643009,-1842.30534656,0.00012992,2]
[338192141,1726380643018,-7162.23,0.00012992,2]
[338192142,1726380643028,-3445.54,0.00012992,2]
[338192143,1726380643037,-1853.92,0.00012992,2]
[338192144,1726380643267,-1643.11,0.00012992,2]
[338192145,1726380643277,-2745.78,0.00012992,2]
[338192146,1726380643287,-4196.9,0.00012992,2]
[338192147,1726380643297,-3444.75,0.00012992,2]
[338192148,1726380643306,-3275.81,0.00012992,2]
[338192149,1726380643318,-2234.29,0.00012992,2]
[338192150,1726380643327,-1166.11,0.00012992,2]
[338192151,1726380643337,-500.0,0.00012992,2]
[338192152,1726380643347,-500.0,0.00012992,2]
[338192154,1726380643356,-2101.83,0.00012992,2]
[338192156,1726380643366,-2227.51,0.00012992,2]
[338192158,1726380643376,-1107.43,0.00012992,2]
[338192160,1726380643385,-11156.03,0.00012992,2]
[338192163,1726380643395,-500.0,0.00012992,2]
[338192165,1726380643405,-500.0,0.00012992,2]
[338192167,1726380643415,-1496.03,0.00012992,2]
[338192169,1726380643424,-25502.2,0.00012992,2]
[338192170,1726380643434,-5475.34,0.00012992,2]
[338192172,1726380643443,-921.64,0.00012992,2]
[338192174,1726380643454,-27829.32,0.00012992,2]
[338192176,1726380643463,-2782.52,0.00012992,2]
[338192178,1726380643473,-1942.87,0.00012992,2]
[338192180,1726380643483,-1462.84,0.00012992,2]
[338192182,1726380643492,-546.61,0.00012992,2]
[338192184,1726380643502,-2495.26,0.00012992,2]
[338192186,1726380643512,-1626.34,0.00012993,2]
[338192188,1726380643521,-949.69,0.00012993,2]
[338192190,1726380643530,-500.0,0.00012993,2]
[338192192,1726380643540,-2018.63,0.00012993,2]
[338192194,1726380643549,-500.0,0.00012993,2]
[338192196,1726380643559,-500.0,0.00012993,2]
[338192198,1726380643568,-973.69,0.00012993,2]
[338192200,1726380643578,-3077.57,0.00012993,2]
[338192201,1726380643587,-1486.14,0.00012993,2]
[338192203,1726380643596,-500.0,0.00012993,2]
[338192205,1726380643606,-1936.15,0.00012993,2]
[338192207,1726380643615,-632.5868858,0.00012993,2]
[338192209,1726380643625,-500.0,0.00012993,2]
[338192211,1726380643635,-1446.66,0.00012993,2]
[338192213,1726380643644,-500.0,0.00012993,2]
[338192215,1726380643654,-500.0,0.00012993,2]
[338192216,1726380643664,-1888.09,0.00012993,2]
[338192218,1726380643673,-500.0,0.00012993,2]
[338192220,1726380643683,-533.84703026,0.00012993,2]
[338192222,1726380643693,-500.0,0.00012993,2]
[338192224,1726380643703,-1852.4,0.00012993,2]
[338192226,1726380643712,-500.0,0.00012993,2]
[338192228,1726380643722,-3757.04,0.00012993,2]
[338192230,1726380643731,-1783.79,0.00012993,2]
[338192232,1726380643741,-383.77132602,0.00012993,2]
[338192234,1726380643751,-1162.55,0.00012993,2]
[338192236,1726380643761,-500.0,0.00012993,2]
[338192238,1726380643771,-3323.69,0.00012993,2]
[338192240,1726380643780,-500.0,0.00012993,2]
[338192241,1726380643789,-500.0,0.00012993,2]
[338192243,1726380643799,-2135.76,0.00012993,2]
[338192245,1726380643809,-4745.96,0.00012993,2]
[338192247,1726380643818,-500.0,0.00012993,2]
[338192249,1726380643827,-1039.17,0.00012993,2]
[338192251,1726380643837,-500.0,0.00012993,2]
[338192253,1726380643846,-20000.0,0.00012993,2]
[338192255,1726380643855,-500.0,0.00012993,2]
[338192257,1726380643865,-2193.4,0.00012993,2]
[338192259,1726380643874,-1218.87,0.00012993,2]
[338192261,1726380643883,-500.0,0.00012993,2]
[338192263,1726380643892,-2855.78,0.00012993,2]
[338192265,1726380643903,-500.0,0.00012993,2]
[338192266,1726380643912,-2540.77,0.00012993,2]
[338192268,1726380643921,-1005.27,0.00012993,2]
[338192270,1726380643931,-1464.48,0.00012993,2]
[338192272,1726380643940,-500.0,0.00012993,2]
[338192274,1726380643950,-500.0,0.00012993,2]
[338192276,1726380643960,-6056.12,0.00012993,2]
[338192278,1726380643969,-500.0,0.00012993,2]
[338192280,1726380643978,-2398.85,0.00012993,2]
[338192281,1726380643987,-500.0,0.00012993,2]
[338192284,1726380643997,-500.0,0.00012993,2]
[338192286,1726380644006,-500.0,0.00012993,2]
[338192287,1726380644015,-1422.44,0.00012993,2]
[338192289,1726380644025,-2828.33,0.00012993,2]
[338192290,1726380644034,-3245.74,0.00012993,2]
[338192291,1726380644043,-500.0,0.00012993,2]
[338192292,1726380644052,-584.25,0.00012993,2]
[338192293,1726380644062,-1577.54,0.00012993,2]
[338192294,1726380644071,-500.0,0.00012993,2]
[338192295,1726380644080,-500.0,0.00012993,2]
[338192296,1726380644089,-619.76,0.00012993,2]
[338192297,1726380644099,-508.69,0.00012993,2]
[338192298,1726380644108,-1456.24,0.00012993,2]
[338192299,1726380644118,-2890.3,0.00012993,2]
[338192300,1726380644128,-500.0,0.00012993,2]
[338192301,1726380644138,-500.0,0.00012993,2]
[338192302,1726380644148,-500.0,0.00012993,2]
[338192303,1726380644157,-2126.42,0.00012993,2]
[338192304,1726380644167,-500.0,0.00012993,2]
[338192305,1726380644177,-500.0,0.00012993,2]
[338192306,1726380644186,-500.0,0.00012993,2]
[338192307,1726380644196,-1014.0,0.00012993,2]
[338192308,1726380644205,-500.0,0.00012993,2]
[338192309,1726380644217,-500.0,0.00012993,2]
[338192310,1726380644227,-500.0,0.00012993,2]
[338192311,1726380644236,-500.0,0.00012993,2]
[338192312,1726380644246,-697.07,0.00012993,2]
[338192313,1726380644255,-181.27011986,0.00012993,2]
[338192314,1726380644265,-500.0,0.00012993,2]
[338192315,1726380644274,-680.72,0.00012993,2]
[338192316,1726380644283,-500.0,0.00012993,2]
[338192317,1726380644292,-500.0,0.00012993,2]
[338192318,1726380644301,-1216.33,0.00012993,2]
[338192319,1726380644311,-1229.96,0.00012993,2]
[338192320,1726380644320,-500.0,0.00012993,2]
[338192321,1726380644330,-500.0,0.00012993,2]
[338192322,1726380644339,-859.3,0.00012993,2]
[338192323,1726380644348,-1008.63,0.00012993,2]
[338192324,1726380644358,-1285.89,0.00012993,2]
[338192325,1726380644367,-317.51268327,0.00012993,2]
[338192326,1726380644376,-500.0,0.00012993,2]
[338192327,1726380644386,-500.0,0.00012993,2]
[338192328,1726380644396,-500.0,0.00012993,2]
[338192329,1726380644405,-500.0,0.00012993,2]
[338192330,1726380644415,-972.87,0.00012993,2]
[338192331,1726380644424,-500.0,0.00012993,2]
[338192332,1726380644434,-500.0,0.00012993,2]
[338192333,1726380644443,-500.0,0.00012993,2]
[338192334,1726380644452,-500.0,0.00012993,2]
[338192335,1726380644462,-500.0,0.00012993,2]
[338192336,1726380644471,-556.64,0.00012993,2]
[338192337,1726380644480,-739.97,0.00012993,2]
[338192338,1726380644490,-500.0,0.00012993,2]
[338192339,1726380644499,-500.0,0.00012993,2]
[338192340,1726380644508,-500.0,0.00012993,2]
[338192341,1726380644517,-500.0,0.00012993,2]
[338192342,1726380644526,-500.0,0.00012993,2]
[338192343,1726380644535,-500.0,0.00012993,2]
[338192344,1726380644544,-1606.49,0.00012993,2]
[338192345,1726380644554,-500.0,0.00012993,2]
[338192346,1726380644563,-500.0,0.00012993,2]
[338192347,1726380644572,-500.0,0.00012993,2]
[338192348,1726380644583,-500.0,0.00012993,2]
[338192349,1726380644592,-500.0,0.00012993,2]
[338192350,1726380644601,-500.0,0.00012993,2]
[338192351,1726380644611,-1002.81,0.00012993,2]
[338192352,1726380644620,-500.0,0.00012993,2]
[338192353,1726380644629,-500.0,0.00012993,2]
[338192354,1726380644639,-500.0,0.00012993,2]
[338192355,1726380644648,-2155.45,0.00012993,2]
[338192356,1726380644656,-500.0,0.00012993,2]
[338192357,1726380644667,-1351.23,0.00012993,2]
[338192358,1726380644677,-500.0,0.00012993,2]
[338192359,1726380644686,-500.0,0.00012993,2]
[338192360,1726380644695,-166.05923693,0.00012993,2]
[338192361,1726380644704,-610.32,0.00012993,2]
[338192362,1726380644713,-350.59163284,0.00012993,2]
[338192363,1726380644723,-500.0,0.00012993,2]
[338192364,1726380644732,-500.0,0.00012993,2]
[338192365,1726380644741,-500.0,0.00012993,2]
[338192366,1726380644751,-1909.49,0.00012993,2]
[338192367,1726380644760,-500.0,0.00012993,2]
[338192368,1726380644769,-280.69929701,0.00012993,2]
[338192369,1726380644779,-1261.86,0.00012993,2]
[338192370,1726380644788,-500.0,0.00012993,2]
[338192371,1726380644797,-500.0,0.00012993,2]
[338192372,1726380644806,-500.0,0.00012993,2]
[338192373,1726380644815,-500.0,0.00012993,2]
[338192374,1726380644825,-826.03,0.00012993,2]
[338192375,1726380644835,-500.0,0.00012993,2]
[338192376,1726380644844,-500.0,0.00012993,2]
[338192377,1726380644853,-500.0,0.00012993,2]
[338192378,1726380644862,-1624.04,0.00012993,2]
[338192379,1726380644871,-500.0,0.00012993,2]
[338192380,1726380644881,-500.0,0.00012993,2]
[338192381,1726380644890,-500.0,0.00012993,2]
[338192382,1726380644900,-500.0,0.00012993,2]
[338192383,1726380644909,-1361.52,0.00012993,2]
[338192384,1726380644919,-500.0,0.00012993,2]
[338192385,1726380644928,-500.0,0.00012993,2]
[338192386,1726380644937,-505.01,0.00012993,2]
[338192387,1726380644946,-500.0,0.00012993,2]
[338192388,1726380644955,-500.0,0.00012993,2]
[338192389,1726380644964,-1648.83,0.00012993,2]
[338192390,1726380644973,-400.07542917,0.00012993,2]
[338192391,1726380644983,-500.0,0.00012993,2]
[338192392,1726380644992,-500.0,0.00012993,2]
[338192393,1726380645001,-500.0,0.00012993,2]
[338192394,1726380645011,-500.0,0.00012993,2]
[338192395,1726380645020,-500.0,0.00012993,2]
[338192396,1726380645029,-500.0,0.00012993,2]
[338192397,1726380645038,-500.0,0.00012993,2]
[338192398,1726380645047,-247.82516343,0.00012993,2]
[338192399,1726380645056,-2032.79,0.00012993,2]
[338192400,1726380645065,-500.0,0.00012993,2]
[338192401,1726380645074,-500.0,0.00012993,2]
[338192402,1726380645084,-500.0,0.00012993,2]
[338192403,1726380645093,-500.0,0.00012993,2]
[338192404,1726380645102,-500.0,0.00012993,2]
[338192405,1726380645111,-517.12,0.00012993,2]
[338192406,1726380645121,-594.19555364,0.00012993,2]
[338192407,1726380645147,-425.28509217,0.00012993,2]
[338192408,1726380645159,-716.53935419,0.00012993,2]
[338192409,1726380645168,-1438.48,0.00012993,2]
[338192410,1726380645177,-102.23971219,0.00012993,2]
[338192411,1726380645189,-571.59772232,0.00012993,2]
[338192431,1726380646796,-253.21256549,0.00012993,2]
[338192432,1726380646806,-68.35434782,0.00012993,2]
[338192433,1726380646836,-431.64565218,0.00012993,2]
[338192434,1726380646846,-500.0,0.00012993,2]
[338192435,1726380646855,-762.87,0.00012993,2]
[338192436,1726380646864,-1059.08,0.00012993,2]
[338192437,1726380646873,-500.0,0.00012993,2]
[338192438,1726380646883,-500.0,0.00012993,2]
[338192439,1726380646892,-1498.35,0.00012993,2]
[338192440,1726380646901,-500.0,0.00012993,2]
[338192441,1726380646910,-841.19,0.00012993,2]
[338192442,1726380646920,-935.15,0.00012993,2]
[338192443,1726380646929,-857.67,0.00012993,2]
[338192444,1726380646938,-662.9,0.00012993,2]
[338192445,1726380646947,-1610.39,0.00012993,2]
[338192446,1726380646956,-500.0,0.00012993,2]
[338192447,1726380646966,-500.0,0.00012993,2]
[338192448,1726380646976,-500.0,0.00012993,2]
[338192449,1726380646986,-500.0,0.00012993,2]
[338192450,1726380646995,-500.0,0.00012993,2]
[338192451,1726380647004,-1493.45,0.00012993,2]
[338192452,1726380647013,-340.57426733,0.00012993,2]
[338192453,1726380647024,-647.40573267,0.00012993,2]
[338192454,1726380647033,-500.0,0.00012993,2]
[338192455,1726380647042,-211.22877804,0.00012993,2]
[338192456,1726380647051,-316.56548929,0.00012993,2]
[338192457,1726380647062,-183.43451071,0.00012993,2]
[338192458,1726380647070,-500.0,0.00012993,2]
[338192459,1726380647079,-640.19,0.00012993,2]
[338192460,1726380647088,-2014.26925712,0.00012993,2]
[338192461,1726380647115,-132.16074288,0.00012993,2]
[338192462,1726380647131,-750.11,0.00012993,2]
[338192463,1726380647151,-500.0,0.00012993,2]
[338192464,1726380647169,-386.4610695,0.00012993,2]
[338192465,1726380656328,2324.52,0.0001228,2]
[338192466,1726380657218,-4891.13,0.00012992,2]
[338192467,1726380657244,-933.12,0.00012992,2]
[338192468,1726380657267,-1386.38,0.00012992,2]
[338192469,1726380657291,-3376.07,0.00012992,2]
[338192470,1726380657317,-113.5389305,0.00012993,2]
[338192471,1726380657340,-1365.13,0.00012993,2]
[338192472,1726380657363,-500.0,0.00012993,2]
[338192473,1726380657385,-940.16,0.00012993,2]
[338192474,1726380657408,-500.0,0.00012993,2]
[338192475,1726380657430,-500.0,0.00012993,2]
[338192476,1726380657452,-500.0,0.00012993,2]
[338192477,1726380657475,-500.0,0.00012993,2]
[338192478,1726380657499,-500.0,0.00012993,2]
[338192479,1726380657522,-600.08,0.00012993,2]
[338192480,1726380657546,-500.0,0.00012993,2]
[338192481,1726380657568,-500.0,0.00012993,2]
[338192482,1726380657591,-794.07,0.00012993,2]
[338192483,1726380657613,-1470.45,0.00012993,2]
[338192484,1726380657636,-500.0,0.00012993,2]
[338192485,1726380657658,-500.0,0.00012993,2]
[338192486,1726380657681,-500.0,0.00012993,2]
[338192487,1726380657704,-500.0,0.00012993,2]
[338192488,1726380657726,-1906.21,0.00012993,2]
[338192489,1726380657750,-500.0,0.00012993,2]
[338192490,1726380657772,-500.0,0.00012993,2]
[338192491,1726380657795,-1252.95,0.00012993,2]
[338192492,1726380657818,-500.0,0.00012993,2]
[338192493,1726380657840,-500.0,0.00012993,2]
[338192494,1726380657863,-1787.87,0.00012993,2]
[338192495,1726380657886,-1182.8410695,0.00012993,2]
[338192496,1726380658081,-1962.45,0.00012992,2]
[338192497,1726380658104,-210.0489305,0.00012993,2]
[338192498,1726380658127,-500.0,0.00012993,2]
[338192499,1726380658149,-500.0,0.00012993,2]
[338192500,1726380658172,-832.29,0.00012993,2]
[338192501,1726380658193,-500.0,0.00012993,2]
[338192502,1726380658217,-500.0,0.00012993,2]
[338192503,1726380658243,-500.0,0.00012993,2]
[338192504,1726380658267,-500.0,0.00012993,2]
[338192505,1726380658290,-500.0,0.00012993,2]
[338192506,1726380658313,-1022.54,0.00012993,2]
[338192507,1726380658335,-505.79,0.00012993,2]
[338192508,1726380658358,-500.0,0.00012993,2]
[338192509,1726380658380,-500.0,0.00012993,2]
[338192510,1726380658402,-500.0,0.00012993,2]
[338192511,1726380658424,-500.0,0.00012993,2]
[338192512,1726380658446,-500.0,0.00012993,2]
[338192513,1726380658468,-5700.24,0.00012993,2]
[338192514,1726380658489,-500.0,0.00012993,2]
[338192515,1726380658513,-840.75,0.00012993,2]
[338192516,1726380658535,-500.0,0.00012993,2]
[338192517,1726380658558,-3425.61,0.00012993,2]
[338192518,1726380658580,-546.31,0.00012993,2]
[338192519,1726380658602,-500.0,0.00012993,2]
[338192520,1726380658625,-1592.9,0.00012993,2]
[338192521,1726380658648,-500.0,0.00012993,2]
[338192522,1726380658671,-992.33,0.00012993,2]
[338192523,1726380658694,-518.28,0.00012993,2]
[338192524,1726380658716,-282.61913039,0.00012993,2]
[338192525,1726380658738,-1621.28,0.00012993,2]
[338192526,1726380658761,-500.0,0.00012993,2]
[338192527,1726380658784,-546.51,0.00012993,2]
[338192528,1726380658807,-900.05193911,0.00012993,2]
[338192529,1726380658967,-1030.53806089,0.00012993,2]
[338192530,1726380658990,-500.0,0.00012993,2]
[338192531,1726380659013,-500.0,0.00012993,2]
[338192532,1726380659035,-500.0,0.00012993,2]
[338192533,1726380659057,-500.0,0.00012993,2]
[338192534,1726380659080,-730.51,0.00012993,2]
[338192535,1726380659103,-645.32,0.00012993,2]
[338192536,1726380659124,-500.0,0.00012993,2]
[338192537,1726380659146,-500.0,0.00012993,2]
[338192538,1726380659171,-500.0,0.00012993,2]
[338192539,1726380659193,-500.0,0.00012993,2]
[338192540,1726380659217,-1119.49,0.00012993,2]
[338192541,1726380659241,-500.0,0.00012993,2]
[338192542,1726380659263,-500.0,0.00012993,2]
[338192543,1726380659285,-1890.35,0.00012993,2]
[338192544,1726380659307,-500.0,0.00012993,2]
[338192545,1726380659329,-500.0,0.00012993,2]
[338192546,1726380659352,-2994.03,0.00012993,2]
[338192547,1726380659375,-500.0,0.00012993,2]
[338192548,1726380659398,-500.0,0.00012993,2]
[338192549,1726380659420,-940.28,0.00012993,2]
[338192550,1726380659443,-500.0,0.00012993,2]
[338192551,1726380659465,-896.45,0.00012993,2]
[338192552,1726380659488,-500.0,0.00012993,2]
[338192553,1726380659511,-500.0,0.00012993,2]
[338192554,1726380659534,-500.0,0.00012993,2]
[338192555,1726380659559,-974.73,0.00012993,2]
[338192556,1726380659582,-2374.38,0.00012993,2]
[338192557,1726380659607,-1147.64,0.00012993,2]
[338192558,1726380659630,-500.0,0.00012993,2]
[338192559,1726380659657,-1707.95,0.00012993,2]
[338192560,1726380659681,-4048.33193911,0.00012993,2]
[338192561,1726380659743,-364.60806089,0.00012993,2]
[338192562,1726380659767,-1725.69,0.00012993,2]
[338192563,1726380659790,-864.78,0.00012993,2]
[338192564,1726380659813,-945.74,0.00012993,2]
[338192565,1726380659835,-500.0,0.00012993,2]
[338192566,1726380659856,-500.0,0.00012993,2]
[338192567,1726380659878,-502.91475499,0.00012993,2]
[338192568,1726380659901,-709.2,0.00012993,2]
[338192569,1726380659924,-805.83,0.00012993,2]
[338192570,1726380659947,-500.0,0.00012993,2]
[338192571,1726380659969,-500.0,0.00012993,2]
[338192572,1726380659992,-645.97,0.00012993,2]
[338192573,1726380660014,-500.0,0.00012993,2]
[338192574,1726380660036,-500.0,0.00012993,2]
[338192575,1726380660060,-500.0,0.00012993,2]
[338192576,1726380660084,-500.0,0.00012993,2]
[338192577,1726380660106,-793.81,0.00012993,2]
[338192578,1726380660129,-500.0,0.00012993,2]
[338192579,1726380660153,-500.0,0.00012993,2]
[338192580,1726380660177,-500.0,0.00012993,2]
[338192581,1726380660201,-500.0,0.00012993,2]
[338192582,1726380660228,-590.56,0.00012993,2]
[338192583,1726380660251,-500.0,0.00012993,2]
[338192584,1726380660275,-500.0,0.00012993,2]
[338192585,1726380660297,-735.05,0.00012993,2]
[338192586,1726380660321,-604.38,0.00012993,2]
[338192587,1726380660349,-1351.48,0.00012993,2]
[338192588,1726380660374,-500.0,0.00012993,2]
[338192589,1726380660398,-1177.41,0.00012993,2]
[338192590,1726380660423,-1466.01,0.00012993,2]
[338192591,1726380660446,-876.37,0.00012993,2]
[338192592,1726380660470,-500.0,0.00012993,2]
[338192593,1726380660753,-1726.48,0.00012993,2]
[338192594,1726380660778,-537.30766349,0.00012993,2]
[338192595,1726380660801,-1524.61,0.00012993,2]
[338192596,1726380660825,-500.0,0.00012993,2]
[338192597,1726380660849,-500.0,0.00012993,2]
[338192598,1726380660873,-1417.95,0.00012993,2]
[338192599,1726380660895,-500.0,0.00012993,2]
[338192600,1726380660921,-504.55,0.00012993,2]
[338192601,1726380660944,-500.0,0.00012993,2]
[338192602,1726380660969,-129.29952063,0.00012993,2]
[338192603,1726380675989,-979.93,0.00012992,2]
[338192604,1726380676012,-3600.49,0.00012992,2]
[338192605,1726380676036,-5324.58,0.00012992,2]
[338192606,1726380676058,-1775.22,0.00012992,2]
[338192607,1726380676081,-3185.21,0.00012992,2]
[338192608,1726380676104,-1322.42,0.00012992,2]
[338192609,1726380676126,-370.70047937,0.00012993,2]
[338192610,1726380676150,-500.0,0.00012993,2]
[338192611,1726380676173,-1501.75,0.00012993,2]
[338192612,1726380676196,-1362.64,0.00012993,2]
[338192613,1726380676471,-500.0,0.00012993,2]
[338192614,1726380676502,-1675.87,0.00012993,2]
[338192615,1726380676524,-1163.61,0.00012993,2]
[338192616,1726380676546,-500.0,0.00012993,2]
[338192617,1726380676568,-500.0,0.00012993,2]
[338192618,1726380676591,-601.01,0.00012993,2]
[338192619,1726380676612,-1257.18,0.00012993,2]
[338192620,1726380676635,-500.0,0.00012993,2]
[338192621,1726380676656,-500.0,0.00012993,2]
[338192622,1726380676680,-121.38952063,0.00012993,2]
[338192623,1726380728203,250.0,0.00012332,2]
[338192624,1726380736443,166.11,0.00012332,2]
[338192625,1726380812312,266.73,0.000123,2]
[338192626,1726380854291,187.54,0.00012256,2]
[338192627,1726380890236,225.0,0.00010327,2]
[338192628,1726380890459,225.0,0.00012591,2]
[338192630,1726381022112,169.93,0.00010959,2]
[338192631,1726381063484,200.0,0.00012266,2]
[338192632,1726381252784,250.0,0.00012248,2]
[338192633,1726381252819,166.11,0.00012236,2]
[338192634,1726381332771,642.11,0.00010959,2]
[338192635,1726381361273,1050.0,0.00011,2]
[338192636,1726381390849,254.36,0.00010278,2]
[338192637,1726381391059,254.36,0.00012542,2]
[338192638,1726381449578,508.05,0.0001215,2]
[338192640,1726381512596,171.13,0.00010959,2]
[338192641,1726381552763,840.0,0.00012126,2]
[338192654,1726381768957,300.41,0.00012092,2]
[338192655,1726381784725,250.0,0.00012078,2]
[338192656,1726381794736,8659.8,0.00012061,2]
[338192657,1726381825614,161.3,0.00012029,2]
[338192663,1726381832183,-2722.12504729,0.00012658,2]
[338192664,1726381832195,-2691.85705271,0.00012658,2]
[338192665,1726381832205,-602.55039724,0.00012768,2]